fUST/lending_fUST_20240521
["ID","MTS","AMOUNT","RATE_DAILY","PERIOD"]
[327607846,1716251458939,-625.27,0.00044109,41]
[327607848,1716251458950,-500.0,0.00044109,41]
[327607850,1716251458959,-860.78,0.00044109,41]
[327607852,1716251458968,-500.0,0.00044109,41]
[327607854,1716251458978,-500.0,0.00044109,14]
[327607856,1716251458987,-500.0,0.00044109,41]
[327607858,1716251458998,-500.0,0.00044109,41]
[327607860,1716251459006,-500.0,0.00044109,41]
[327607862,1716251459016,-500.0,0.00044109,41]
[327607864,1716251459025,-500.0,0.00044109,41]
[327607866,1716251459034,-500.0,0.00044109,41]
[327607868,1716251459044,-500.0,0.00044109,41]
[327607870,1716251459053,-807.26,0.00044109,41]
[327607872,1716251459062,-500.0,0.00044109,41]
[327607874,1716251459071,-589.4,0.00044109,41]
[327607876,1716251459080,-791.08,0.00044109,41]
[327607878,1716251459089,-826.08,0.00044109,41]
[327607880,1716251459099,-3000.0,0.00044109,30]
[327607882,1716251459108,-808.43,0.00044109,41]
[327607884,1716251459117,-3348.97,0.00044109,7]
[327607886,1716251459126,-500.0,0.00044109,41]
[327607888,1716251459135,-500.0,0.00044109,41]
[327607890,1716251459144,-650.18,0.00044109,41]
[327607892,1716251459154,-656.22,0.00044109,7]
[327607894,1716251459164,-1404.29,0.00044109,41]
[327607896,1716251459175,-3364.95,0.00044109,41]
[327607898,1716251459184,-500.0,0.00044109,41]
[327607900,1716251459193,-500.0,0.00044109,41]
[327607902,1716251459202,-1430.09,0.00044109,41]
[327607904,1716251459211,-510.95,0.00044109,41]
[327607906,1716251459221,-872.74,0.00044109,41]
[327607908,1716251459230,-566.13,0.00044109,41]
[327607910,1716251459239,-500.0,0.00044109,41]
[327607912,1716251459248,-500.0,0.00044109,41]
[327607914,1716251459257,-463.38265305,0.00044109,41]
[327607916,1716251459266,-593.93994645,0.00044109,41]
[327607918,1716251459276,-1030.56,0.00044109,41]
[327607920,1716251459285,-581.41,0.00044109,41]
[327607922,1716251459294,-790.63,0.00044109,41]
[327607924,1716251459303,-2023.87,0.00044109,41]
[327607926,1716251459312,-500.0,0.00044109,41]
[327607928,1716251459321,-888.09,0.00044109,41]
[327607930,1716251459330,-500.0,0.00044109,41]
[327607932,1716251459340,-744.8,0.00044109,41]
[327607934,1716251459356,-2128.97,0.00044109,41]
[327607936,1716251459365,-500.0,0.00044109,41]
[327607938,1716251459376,-500.0,0.00044109,41]
[327607940,1716251459386,-533.38428511,0.00044109,41]
[327607942,1716251459395,-609.19,0.00044109,41]
[327607944,1716251459404,-11641.98,0.00044109,41]
[327607946,1716251459413,-500.0,0.00044109,41]
[327607948,1716251459424,-500.0,0.00044109,41]
[327607950,1716251459433,-500.0,0.00044109,41]
[327607952,1716251459442,-500.0,0.00044109,41]
[327607954,1716251459451,-500.0,0.00044109,41]
[327607956,1716251459459,-500.0,0.00044109,41]
[327607958,1716251459469,-951.96,0.00044109,41]
[327607960,1716251459479,-500.0,0.00044109,41]
[327607962,1716251459488,-1193.44,0.00044109,41]
[327607964,1716251459497,-500.0,0.00044109,41]
[327607966,1716251459506,-500.0,0.00044109,41]
[327607968,1716251459515,-4981.37,0.00044109,41]
[327607970,1716251459524,-500.0,0.00044109,41]
[327607972,1716251459533,-500.0,0.00044109,41]
[327607974,1716251459542,-500.0,0.00044109,41]
[327607976,1716251459551,-570.81783001,0.00044109,41]
[327607978,1716251459560,-500.0,0.00044109,41]
[327607980,1716251459569,-267.82339139,0.00044109,41]
[327607982,1716251459578,-1068.42,0.00044109,41]
[327607984,1716251459587,-500.0,0.00044109,41]
[327607986,1716251459596,-500.0,0.00044109,41]
[327607988,1716251459605,-500.0,0.00044109,41]
[327607990,1716251459614,-500.0,0.00044109,41]
[327607992,1716251459623,-675.43,0.00044109,41]
[327607994,1716251459632,-848.94,0.00044109,41]
[327607996,1716251459641,-714.09,0.00044109,41]
[327607998,1716251459650,-500.0,0.00044109,41]
[327608000,1716251459659,-500.0,0.00044109,41]
[327608002,1716251459667,-500.0,0.00044109,41]
[327608003,1716251459678,-500.0,0.00044109,41]
[327608005,1716251459688,-500.0,0.00044109,41]
[327608007,1716251459697,-515.38,0.00044109,41]
[327608009,1716251459706,-944.33,0.00044109,41]
[327608011,1716251459715,-500.0,0.00044109,41]
[327608013,1716251459724,-4706.64,0.00044109,41]
[327608015,1716251459733,-542.91,0.00044109,41]
[327608017,1716251459741,-500.0,0.00044109,41]
[327608019,1716251459750,-500.0,0.00044109,41]
[327608021,1716251459760,-500.0,0.00044109,41]
[327608023,1716251459769,-708.7,0.00044109,41]
[327608025,1716251459778,-1003.88,0.00044109,41]
[327608027,1716251459787,-629.77,0.00044109,41]
[327608029,1716251459796,-5262.02,0.00044109,41]
[327608031,1716251459805,-731.45,0.00044109,41]
[327608033,1716251459815,-1001.71,0.00044109,41]
[327608035,1716251459823,-727.51,0.00044109,41]
[327608037,1716251459833,-897.49,0.00044109,41]
[327608039,1716251459842,-615.66,0.00044109,41]
[327608041,1716251459851,-500.0,0.00044109,41]
[327608043,1716251459860,-156.484614,0.00044109,7]
[327608045,1716251459870,-500.0,0.00044109,41]
[327608047,1716251459879,-696.74,0.00044109,41]
[327608049,1716251459888,-505.92874581,0.00044109,41]
[327608051,1716251459897,-4635.22,0.00044109,21]
[327608053,1716251459910,-1265.54,0.00044109,41]
[327608055,1716251459932,-1137.2,0.00044109,41]
[327608057,1716251459941,-552.82,0.00044109,41]
[327608059,1716251459950,-500.0,0.00044109,41]
[327608061,1716251459959,-156.484614,0.00044109,7]
[327608063,1716251459968,-1414.2,0.00044109,41]
[327608065,1716251459978,-500.0,0.00044109,41]
[327608067,1716251459987,-806.75,0.00044109,41]
[327608069,1716251459996,-500.0,0.00044109,41]
[327608071,1716251460006,-734.26,0.00044109,41]
[327608073,1716251460016,-592.38,0.00044109,41]
[327608075,1716251460025,-500.0,0.00044109,41]
[327608077,1716251460034,-567.75,0.00044109,41]
[327608079,1716251460043,-500.0,0.00044109,41]
[327608081,1716251460052,-850.19,0.00044109,41]
[327608083,1716251460061,-882.62,0.00044109,41]
[327608085,1716251460071,-929.56,0.00044109,41]
[327608087,1716251460080,-1000.0,0.00044109,41]
[327608089,1716251460089,-502.84669941,0.00044109,41]
[327608091,1716251460100,-715.71,0.00044109,41]
[327608093,1716251460109,-500.0,0.00044109,30]
[327608095,1716251460118,-500.0,0.00044109,41]
[327608097,1716251460128,-500.0,0.00044109,41]
[327608099,1716251460137,-1585.97,0.00044109,41]
[327608101,1716251460146,-2103.11,0.00044109,41]
[327608103,1716251460155,-500.0,0.00044109,41]
[327608105,1716251460164,-500.0,0.00044109,41]
[327608106,1716251460174,-511.8,0.00044109,41]
[327608109,1716251460183,-507.12207291,0.00044109,41]
[327608111,1716251460193,-500.0,0.00044109,41]
[327608113,1716251460203,-20570.98,0.00044109,41]
[327608114,1716251460212,-3402.39,0.00044109,41]
[327608116,1716251460221,-500.0,0.00044109,41]
[327608119,1716251460231,-381.05028867,0.00044109,41]
[327608120,1716251460240,-1352.5,0.00044109,41]
[327608122,1716251460251,-771.96,0.00044109,41]
[327608124,1716251460260,-500.0,0.00044109,41]
[327608127,1716251460270,-1337.33,0.00044109,41]
[327608128,1716251460280,-551.76540875,0.00044109,41]
[327608130,1716251460289,-500.0,0.00044109,41]
[327608132,1716251460299,-531.80596731,0.00044109,41]
[327608134,1716251460308,-500.0,0.00044109,41]
[327608136,1716251460318,-500.0,0.00044109,41]
[327608138,1716251460327,-500.0,0.00044109,41]
[327608140,1716251460336,-518.12,0.00044109,41]
[327608142,1716251460345,-500.0,0.00044109,41]
[327608144,1716251460355,-732.29,0.00044109,41]
[327608146,1716251460364,-500.0,0.00044109,41]
[327608148,1716251460373,-500.0,0.00044109,41]
[327608150,1716251460383,-500.0,0.00044109,41]
[327608152,1716251460392,-724.92,0.00044109,41]
[327608154,1716251460401,-500.0,0.00044109,41]
[327608156,1716251460410,-526.14,0.00044109,41]
[327608158,1716251460419,-1250.24,0.00044109,41]
[327608160,1716251460429,-260.84613211,0.00044109,41]
[327608162,1716251460438,-927.1,0.00044109,41]
[327608164,1716251460447,-151.0,0.00044109,7]
[327608166,1716251460456,-500.0,0.00044109,41]
[327608168,1716251460465,-500.0,0.00044109,41]
[327608170,1716251460474,-500.0,0.00044109,41]
[327608172,1716251460483,-500.0,0.00044109,41]
[327608174,1716251460492,-500.0,0.00044109,41]
[327608176,1716251460502,-157.0792385,0.00044109,41]
[327608178,1716251460510,-500.0,0.00044109,41]
[327608180,1716251460519,-500.0,0.00044109,41]
[327608182,1716251460529,-500.0,0.00044109,41]
[327608184,1716251460539,-500.0,0.00044109,41]
[327608186,1716251460548,-1136.25,0.00044109,41]
[327608188,1716251460557,-500.0,0.00044109,41]
[327608190,1716251460566,-500.0,0.00044109,41]
[327608192,1716251460575,-500.0,0.00044109,41]
[327608194,1716251460585,-500.0,0.00044109,41]
[327608196,1716251460595,-2165.01,0.00044109,41]
[327608198,1716251460604,-500.0,0.00044109,41]
[327608200,1716251460613,-500.0,0.00044136,60]
[327608202,1716251460622,-355.432869,0.00044164,2]
[327608214,1716251460728,-355.432869,0.00044164,2]
[327608216,1716251460737,-500.0,0.00044164,60]
[327608218,1716251460747,-500.0,0.00044191,60]
[327608220,1716251460756,-500.0,0.00044219,60]
[327608222,1716251460766,-500.0,0.00044246,60]
[327608224,1716251460774,-500.0,0.00044273,60]
[327608226,1716251460784,-492.61535643,0.00044301,60]
[327608228,1716251460793,-300.0,0.00044366,7]
[327608230,1716251460802,-300.0,0.00044371,7]
[327608231,1716251460811,-3000.0,0.00044383,2]
[327608233,1716251460820,-3000.0,0.00044383,2]
[327608235,1716251460829,-3000.0,0.00044383,2]
[327608237,1716251460838,-3000.0,0.00044383,2]
[327608239,1716251460848,-1998.6315601,0.00044383,20]
[327608241,1716251460857,-240.86369369,0.00044383,4]
[327608243,1716251460866,-500.0,0.00044383,42]
[327608245,1716251460875,-500.0,0.00044383,42]
[327608247,1716251460884,-714.47,0.00044383,42]
[327608250,1716251460894,-500.0,0.00044383,42]
[327608251,1716251460903,-500.0,0.00044383,42]
[327608254,1716251460914,-500.0,0.00044383,42]
[327608255,1716251460929,-500.0,0.00044383,42]
[327608257,1716251460938,-500.0,0.00044383,42]
[327608259,1716251460947,-500.0,0.00044383,42]
[327608261,1716251460957,-724.47,0.00044383,42]
[327608263,1716251460966,-500.0,0.00044383,42]
[327608265,1716251460975,-500.0,0.00044383,42]
[327608267,1716251460984,-500.0,0.00044383,42]
[327608269,1716251460995,-500.0,0.00044383,42]
[327608271,1716251461004,-500.0,0.00044383,42]
[327608273,1716251461014,-947.48,0.00044383,42]
[327608275,1716251461025,-500.0,0.00044383,42]
[327608277,1716251461034,-500.0,0.00044383,42]
[327608279,1716251461043,-500.0,0.00044383,42]
[327608281,1716251461053,-500.0,0.00044383,42]
[327608283,1716251461063,-500.0,0.00044383,42]
[327608285,1716251461072,-500.0,0.00044383,42]
[327608287,1716251461081,-1200.52,0.00044383,42]
[327608289,1716251461090,-500.0,0.00044383,42]
[327608291,1716251461098,-500.0,0.00044383,42]
[327608293,1716251461107,-674.08,0.00044383,42]
[327608295,1716251461116,-500.0,0.00044383,42]
[327608297,1716251461125,-602.70978478,0.00044383,42]
[327608299,1716251461134,-500.0,0.00044383,42]
[327608301,1716251461143,-500.0,0.00044383,42]
[327608303,1716251461152,-594.37,0.00044383,42]
[327608305,1716251461161,-500.0,0.00044383,42]
[327608307,1716251461172,-500.0,0.00044383,42]
[327608309,1716251461181,-500.0,0.00044383,42]
[327608311,1716251461190,-382.29427707,0.00044383,42]
[327608313,1716251461199,-500.0,0.00044383,42]
[327608315,1716251461208,-500.0,0.00044383,42]
[327608317,1716251461217,-500.0,0.00044383,42]
[327608319,1716251461226,-500.0,0.00044383,42]
[327608320,1716251461235,-500.0,0.00044383,42]
[327608321,1716251461245,-500.0,0.00044383,42]
[327608322,1716251461254,-500.0,0.00044383,42]
[327608323,1716251461263,-541.71,0.00044383,42]
[327608324,1716251461272,-646.72,0.00044383,42]
[327608325,1716251461282,-500.0,0.00044383,42]
[327608326,1716251461291,-810.81,0.00044383,42]
[327608327,1716251461299,-721.34,0.00044383,42]
[327608328,1716251461308,-740.67,0.00044383,42]
[327608329,1716251461317,-500.0,0.00044383,42]
[327608330,1716251461326,-500.0,0.00044383,42]
[327608331,1716251461336,-500.0,0.00044383,42]
[327608332,1716251461345,-500.0,0.00044383,42]
[327608333,1716251461355,-500.0,0.00044383,42]
[327608334,1716251461365,-500.0,0.00044383,42]
[327608335,1716251461373,-500.0,0.00044383,42]
[327608336,1716251461384,-500.0,0.00044383,42]
[327608337,1716251461396,-641.85,0.00044383,42]
[327608338,1716251461405,-500.0,0.00044383,42]
[327608339,1716251461414,-500.0,0.00044383,42]
[327608341,1716251461425,-500.0,0.00044383,42]
[327608342,1716251461434,-500.0,0.00044383,42]
[327608344,1716251461443,-500.0,0.00044383,42]
[327608346,1716251461452,-500.0,0.00044383,42]
[327608348,1716251461461,-500.0,0.00044383,42]
[327608350,1716251461471,-500.0,0.00044383,20]
[327608352,1716251461480,-804.18,0.00044383,42]
[327608354,1716251461489,-532.32811759,0.00044383,42]
[327608356,1716251461498,-500.0,0.00044383,42]
[327608358,1716251461507,-509.54,0.00044383,42]
[327608360,1716251461516,-501.43,0.00044383,42]
[327608362,1716251461525,-692.02,0.00044383,42]
[327608364,1716251461535,-414.97061866,0.00044383,42]
[327608366,1716251461544,-500.0,0.00044383,42]
[327608368,1716251461554,-500.0,0.00044383,42]
[327608370,1716251461563,-500.0,0.00044383,42]
[327608372,1716251461573,-592.75,0.00044383,42]
[327608374,1716251461582,-761.16,0.00044383,42]
[327608376,1716251461592,-500.0,0.00044383,42]
[327608378,1716251461601,-500.0,0.00044383,42]
[327608380,1716251461610,-194.93911576,0.00044383,42]
[327608382,1716251461619,-500.0,0.00044383,42]
[327608384,1716251461628,-300.0,0.00044383,7]
[327608386,1716251461637,-500.0,0.00044383,42]
[327608388,1716251461647,-500.0,0.00044383,42]
[327608390,1716251461656,-500.0,0.00044383,42]
[327608391,1716251461665,-500.0,0.00044383,42]
[327608393,1716251461677,-500.0,0.00044383,42]
[327608395,1716251461686,-766.26,0.00044383,42]
[327608397,1716251461696,-500.0,0.00044383,42]
[327608399,1716251461705,-500.0,0.00044383,42]
[327608402,1716251461714,-878.66,0.00044383,42]
[327608403,1716251461724,-500.0,0.00044383,42]
[327608405,1716251461733,-506.13495489,0.00044383,42]
[327608408,1716251461742,-500.0,0.00044383,42]
[327608409,1716251461752,-500.0,0.00044383,2]
[327608411,1716251461761,-875.65,0.00044383,42]
[327608413,1716251461771,-500.0,0.00044383,42]
[327608415,1716251461780,-500.0,0.00044383,42]
[327608417,1716251461789,-788.66,0.00044383,42]
[327608419,1716251461798,-500.0,0.00044383,42]
[327608421,1716251461807,-1035.69,0.00044383,42]
[327608423,1716251461816,-151.0,0.00044383,7]
[327608425,1716251461826,-500.0,0.00044383,42]
[327608427,1716251461835,-151.0,0.00044383,7]
[327608429,1716251461844,-715.03,0.00044383,42]
[327608431,1716251461854,-500.0,0.00044383,42]
[327608433,1716251461863,-823.14,0.00044383,42]
[327608435,1716251461873,-535.22,0.00044383,42]
[327608437,1716251461883,-522.92,0.00044383,42]
[327608439,1716251461892,-938.15,0.00044383,42]
[327608441,1716251461903,-894.89,0.00044383,42]
[327608443,1716251461917,-500.0,0.00044383,42]
[327608445,1716251461930,-584.04965935,0.00044383,42]
[327608447,1716251461939,-1083.32,0.00044383,42]
[327608449,1716251461948,-173.750904,0.00044383,7]
[327608451,1716251461958,-173.750904,0.00044383,7]
[327608453,1716251461968,-500.0,0.00044383,42]
[327608455,1716251461977,-173.750904,0.00044383,7]
[327608457,1716251461986,-500.0,0.00044383,42]
[327608459,1716251461999,-173.750904,0.00044383,7]
[327608461,1716251462009,-591.08747668,0.00044383,42]
[327608463,1716251462019,-836.73,0.00044383,42]
[327608465,1716251462029,-500.0,0.00044383,42]
[327608467,1716251462038,-500.0,0.00044383,42]
[327608469,1716251462048,-500.0,0.00044383,42]
[327608471,1716251462058,-500.0,0.00044383,42]
[327608473,1716251462067,-500.0,0.00044383,42]
[327608474,1716251462076,-869.46,0.00044383,42]
[327608476,1716251462085,-531.36,0.00044383,42]
[327608478,1716251462095,-505.59310942,0.00044383,42]
[327608480,1716251462108,-1073.93,0.00044383,42]
[327608482,1716251462118,-770.24,0.00044383,42]
[327608484,1716251462128,-500.0,0.00044383,42]
[327608486,1716251462137,-500.0,0.00044383,42]
[327608488,1716251462146,-500.0,0.00044383,42]
[327608490,1716251462155,-500.0,0.00044383,42]
[327608492,1716251462165,-802.6,0.00044383,42]
[327608494,1716251462177,-500.0,0.00044383,42]
[327608496,1716251462187,-500.0,0.00044383,42]
[327608498,1716251462196,-869.16,0.00044383,42]
[327608500,1716251462206,-913.46,0.00044383,42]
[327608502,1716251462216,-500.0,0.00044383,42]
[327608504,1716251462226,-829.97,0.00044383,42]
[327608506,1716251462236,-500.0,0.00044383,42]
[327608508,1716251462245,-500.0,0.00044383,42]
[327608510,1716251462254,-709.66,0.00044383,42]
[327608512,1716251462263,-500.0,0.00044383,42]
[327608514,1716251462273,-500.0,0.00044383,42]
[327608516,1716251462282,-355.432869,0.00044383,2]
[327608518,1716251462291,-762.28,0.00044383,42]
[327608520,1716251462300,-651.68,0.00044383,42]
[327608522,1716251462309,-355.432869,0.00044383,2]
[327608524,1716251462318,-638.77,0.00044383,42]
[327608526,1716251462327,-500.0,0.00044383,42]
[327608528,1716251462336,-451.03267422,0.00044383,42]
[327608530,1716251462345,-518.59164148,0.00044383,42]
[327608532,1716251462354,-1027.25,0.00044383,42]
[327608534,1716251462363,-500.0,0.00044383,42]
[327608536,1716251462372,-500.0,0.00044383,42]
[327608538,1716251462380,-500.0,0.00044383,42]
[327608540,1716251462389,-500.0,0.00044383,42]
[327608542,1716251462398,-178.31721571,0.00044383,42]
[327608543,1716251462407,-697.82,0.00044383,42]
[327608545,1716251462417,-661.38,0.00044383,42]
[327608547,1716251462428,-500.0,0.00044383,42]
[327608549,1716251462437,-574.44,0.00044383,42]
[327608551,1716251462446,-502.57,0.00044383,42]
[327608553,1716251462455,-500.0,0.00044383,42]
[327608555,1716251462464,-609.76,0.00044383,42]
[327608557,1716251462473,-691.02,0.00044383,42]
[327608559,1716251462482,-1444.33,0.00044383,42]
[327608571,1716251462586,-500.0,0.00044383,42]
[327608574,1716251462596,-500.0,0.00044383,42]
[327608576,1716251462605,-500.0,0.00044383,42]
[327608577,1716251462615,-500.0,0.00044383,42]
[327608579,1716251462624,-500.0,0.00044383,42]
[327608582,1716251462633,-354.99808308,0.00044383,42]
[327610558,1716251599668,8279.993,0.00019,10]
[327610559,1716251599692,1707.007,0.00019,10]
[327610679,1716252632169,-1942.6020103,8.248e-05,2]
[327610682,1716252632184,-86.29751735,8.248e-05,2]
[327610687,1716252632199,-464.49410182,8.248e-05,2]
[327610691,1716252632208,-316.26688974,8.249e-05,2]
[327610694,1716252632218,-305.56278524,8.28e-05,2]
[327610721,1716252638126,-537.59859337,8.28e-05,2]
[327610722,1716252638136,-309.70467802,8.363e-05,2]
[327610723,1716252638147,-694.29187157,8.364e-05,2]
[327610724,1716252638156,-1011.31880782,8.364e-05,2]
[327610725,1716252638166,-2462.75272988,8.707e-05,2]
[327610770,1716252640534,-249.993024,8.707e-05,2]
[327610772,1716252640547,-22187.25424612,8.707e-05,2]
[327610774,1716252640558,-410.45768134,9.999e-05,2]
[327610777,1716252640583,-207.24447727,9.999e-05,2]
[327610780,1716252640594,-658.02873829,9.999e-05,2]
[327610782,1716252640604,-261.05215328,9.999e-05,2]
[327610784,1716252640615,-1450.80884896,0.0001,2]
[327610786,1716252640625,-266.477883,0.00013699,2]
[327610788,1716252640638,-942.77170322,0.00015,2]
[327610790,1716252640650,-41600.32937965,0.00015,2]
[327610792,1716252640660,-183.73123692,0.000189,2]
[327610794,1716252640670,-22647.84515755,0.00019,2]
[327610796,1716252640680,-7413.7136393,0.0002,2]
[327610798,1716252640690,-174.30327525,0.00020797,2]
[327610800,1716252640699,-500.0,0.00020797,2]
[327610802,1716252640710,-256.8622902,0.00020797,2]
[327610804,1716252640720,-25138.63846523,0.00020798,2]
[327611116,1716252643637,-2510.01279245,0.00020798,2]
[327611119,1716252643649,-154.9690062,0.00020805,2]
[327611122,1716252643659,-641.86376226,0.00020805,2]
[327611126,1716252643668,-9398.82663272,0.00020806,2]
[327611130,1716252643678,-2000.0,0.00020807,2]
[327611133,1716252643687,-771.85111591,0.00020807,2]
[327611136,1716252643697,-1516.20451626,0.00020907,2]
[327611141,1716252643707,-238.60242952,0.00020907,2]
[327611144,1716252643718,-350.61277918,0.00020907,2]
[327611147,1716252643727,-1896.23906673,0.00020907,2]
[327611150,1716252643737,-1042.0,0.00020907,2]
[327611153,1716252643747,-528.07938257,0.00020907,2]
[327611155,1716252643757,-2167.69446202,0.00020907,2]
[327611157,1716252643766,-519.84555857,0.00020907,2]
[327611159,1716252643776,-1340.02005625,0.00020907,2]
[327611161,1716252643786,-448.815542,0.00020908,2]
[327611163,1716252643796,-309.59754173,0.00020909,2]
[327611165,1716252643807,-46764.41885793,0.00020909,2]
[327611167,1716252643817,-4653.90531311,0.00020911,2]
[327611169,1716252643827,-10448.18379378,0.00020911,2]
[327611171,1716252643836,-150.0,0.00021059,3]
[327611173,1716252643848,-183.7312369,0.000214,2]
[327611175,1716252643857,-166.666666,0.00021918,2]
[327611177,1716252643867,-166.666666,0.00022431,2]
[327611179,1716252643877,-166.666666,0.00022944,2]
[327611181,1716252643886,-150.0,0.00023179,3]
[327611183,1716252643898,-166.666666,0.00023456,2]
[327611185,1716252643907,-183.7312369,0.000239,2]
[327611187,1716252643917,-166.666666,0.00023969,2]
[327611189,1716252643927,-187.16152448,0.00024,2]
[327611191,1716252643936,-312.086129,0.00024384,2]
[327611193,1716252643946,-216.726499,0.00024384,2]
[327611195,1716252643960,-166.666666,0.00024482,2]
[327611197,1716252643969,-191.39485386,0.00025,2]
[327611199,1716252643980,-150.0,0.000253,5]
[327611201,1716252643989,-183.7312369,0.000264,2]
[327611204,1716252643999,-1136.59312053,0.0002739,2]
[327611206,1716252644009,-369.20859251,0.00027397,2]
[327611208,1716252644019,-150.0,0.0002742,5]
[327611210,1716252644034,-14471.50048569,0.000275,2]
[327611212,1716252644044,-221.55802421,0.00028,2]
[327611214,1716252644053,-3392.38294644,0.0002877,3]
[327611216,1716252644063,-66328.12224559,0.0002877,2]
[327611218,1716252644073,-183.7312369,0.000289,2]
[327611220,1716252644082,-431.03154915,0.00029,2]
[327611222,1716252644091,-150.0,0.0002954,7]
[327611224,1716252644101,-165.33353714,0.0003,4]
[327611226,1716252644111,-464.09985769,0.0003,30]
[327611228,1716252644121,-214.14156198,0.0003,4]
[327611230,1716252644131,-886.41112912,0.0003,4]
[327611232,1716252644140,-34013.68067997,0.0003,2]
[327611234,1716252644152,-154.7215003,0.0003,2]
[327611236,1716252644161,-2614.07860252,0.0003,10]
[327611238,1716252644171,-1807.8960946,0.0003,5]
[327611240,1716252644181,-199.0,0.0003,2]
[327611242,1716252644191,-312.086129,0.0003031,2]
[327611244,1716252644201,-150.0,0.00031661,7]
[327611246,1716252644211,-199.0,0.00033,2]
[327611248,1716252644221,-199.0,0.00033,2]
[327611250,1716252644231,-150.0,0.00033781,7]
[327611252,1716252644240,-467.93476807,0.00034,4]
[327611255,1716252644250,-17261.69374306,0.0003457,2]
[327611257,1716252644260,-48976.38377886,0.00034591,5]
[327611259,1716252644273,-483.01871911,0.00034591,5]
[327615324,1716253832567,-529.7189769,8.602e-05,2]
[327615326,1716253832580,-21.07264227,8.602e-05,2]
[327615328,1716253832590,-154.98450155,8.603e-05,2]
[327615330,1716253832599,-133.94285618,8.705e-05,2]
[327615333,1716253832612,-499.6620404,8.705e-05,2]
[327615335,1716253832621,-340.37759599,9.999e-05,2]
[327615337,1716253832631,-3089.3531538,0.0001,2]
[327615352,1716253832780,-500.0,0.0001,2]
[327615934,1716253838489,-5811.2011195,0.0001,2]
[327615936,1716253838498,-250.0,0.00011685,2]
[327615938,1716253838508,-166.7229165,0.00013699,2]
[327615940,1716253838517,-435.547965,0.00013699,2]
[327615942,1716253838526,-678.51041447,0.00014997,2]
[327615944,1716253838538,-1530.99046143,0.00014997,2]
[327615946,1716253838546,-376.78377029,0.00015,2]
[327615948,1716253838556,-942.77170322,0.00015,2]
[327615950,1716253838565,-962.96909812,0.00015696,2]
[327615952,1716253838575,-3227.66902538,0.00015697,2]
[327615954,1716253838584,-767.38733772,0.00015698,2]
[327615956,1716253838597,-1570.92564338,0.00015698,2]
[327615975,1716253838783,-18179.19338638,0.00015698,2]
[327616188,1716253840942,-2479.8072509,0.00015698,2]
[327616190,1716253840955,-1902.68638162,0.00015698,2]
[327616192,1716253840964,-1390.18089013,0.000159,2]
[327616194,1716253840973,-306.09705841,0.00016,2]
[327616196,1716253840983,-618.35590669,0.00018423,2]
[327616198,1716253840993,-374.4204,0.00019,2]
[327616200,1716253841002,-168.148609,0.00019178,2]
[327616203,1716253841011,-241.21190449,0.0002,2]
[327616204,1716253841020,-309.51053221,0.0002,2]
[327616206,1716253841030,-1565.51900701,0.0002,2]
[327616208,1716253841040,-4692.31037495,0.0002,2]
[327616209,1716253841049,-7413.7136393,0.0002,2]
[327616211,1716253841059,-200.0,0.0002,2]
[327616214,1716253841068,-435.547965,0.00020548,2]